[Event "Champions Showdown Kings Blitz 2019-B"]
[Site "Saint Louis"]
[Date "2019.02.22"]
[Round "3"]
[White "Duda, Jan-Krzysztof"]
[Black "Nakamura, Hikaru"]
[Result "0-1"]
[ECO "A18"]
[WhiteElo "2731"]
[BlackElo "2749"]
[Annotator "ChessBase"]
[PlyCount "76"]
[EventDate "2019.02.09"]
[EventType "match"]
[EventCountry "USA"]
[SourceTitle "playchess.com"]
[Source "ChessBase"]
[SourceQuality "1"]
[TimeControl "900+10"]

1. c4 {[%emt 0:12:07]} Nf6 {[%emt 0:12:07]} 2. Nc3 {[%emt 0:00:09]} e6 {[%emt 0:00:11]} 3. e4 {[%emt 0:00:09]} d5 {[%emt 0:00:09]} 4. e5 {[%emt 0:00:09]} d4 {[%emt 0:00:09]} 5. exf6 {[%emt 0:00:09]} dxc3 {[%emt 0:00:09]} 6. bxc3 {[%emt 0:00:09]} Qxf6 {[%emt 0:00:10]} 7. f4 {[%emt 0:00:09]} c5 {[%emt 0:00:19]} 8. g3 {[%emt 0:00:15]} Bd7 {[%emt 0:00:10]} 9. Bg2 {[%emt 0:00:10]} Bc6 {[%emt 0:00:08]} 10. Nf3 {[%emt 0:00:09]} Be7 {[%emt 0:00:22]} 11. O-O {[%emt 0:00:13]} O-O {[%emt 0:00:10]} 12. d4 {[%emt 0:00:12]} Rd8 {[%emt 0:00:16]} 13. f5 {[%emt 0:00:26]} exf5 {[%emt 0:01:24]} 14. Bg5 {[%emt 0:00:17]} Qd6 {[%emt 0:00:10]} 15. Bf4 {[%emt 0:00:10]} Qf6 {[%emt 0:00:25]} 16. Bc7 {[%emt 0:00:46]} Rc8 {[%emt 0:00:21]} 17. Be5 {[%emt 0:00:14]} Qg6 {[%emt 0:00:10]} 18. d5 {[%emt 0:00:10]} Be8 {[%emt 0:00:10]} 19. Rb1 {[%emt 0:01:07]} Nd7 {[%emt 0:00:27]} 20. Rxb7 {[%emt 0:00:13]} Qa6 {[%emt 0:00:12]} 21. Qb3 {[%emt 0:00:25]} Bd8 {[%emt 0:00:10]} 22. Rb5 {[%emt 0:00:30]} Nxe5 {[%emt 0:00:15]} 23. Nxe5 {[%emt 0:00:09]} Bxb5 {[%emt 0:00:09]} 24. cxb5 {[%emt 0:00:09]} c4 {[%emt 0:00:09]} 25. Nxc4 {[%emt 0:00:14]} Qf6 {[%emt 0:00:11]} 26. d6 {[%emt 0:00:09]} Rab8 {[%emt 0:00:09]} 27. Bd5 {[%emt 0:00:13]} Rc5 {[%emt 0:00:11]} 28. Ne3 {[%emt 0:00:22]} Rxc3 {[%emt 0:00:12]} 29. Bxf7+ {[%emt 0:00:13]} Kh8 {[%emt 0:00:10]} 30. Qd5 {[%emt 0:00:09]} Bb6 {[%emt 0:00:13]} 31. Rxf5 {[%emt 0:00:10]} Qh6 {[%emt 0:00:09]} 32. Kg2 {[%emt 0:00:10]} Qxe3 {[%emt 0:00:10]} 33. d7 {[%emt 0:00:10]} Rc5 {[%emt 0:00:17]} 34. Be8 {[%emt 0:00:09]} Rxe8 {[%emt 0:00:18]} 35. Qf7 {[%emt 0:00:10]} Rg8 {[%emt 0:00:16]} 36. Rf4 {[%emt 0:00:10]} Qe2+ {[%emt 0:00:10]} 37. Rf2 {[%emt 0:00:10]} Qe4+ {[%emt 0:00:09]} 38. Rf3 {[%emt 0:00:10]} Rc3 {[%emt 0:00:11]} 0-1

[Event "Champions Showdown Kings Blitz 2019-B"]
[Site "Saint Louis"]
[Date "2019.02.22"]
[Round "8"]
[White "Nakamura, Hikaru"]
[Black "Duda, Jan-Krzysztof"]
[Result "1/2-1/2"]
[ECO "D30"]
[WhiteElo "2749"]
[BlackElo "2731"]
[Annotator "ChessBase"]
[PlyCount "133"]
[EventDate "2019.02.09"]
[EventType "match"]
[EventCountry "USA"]
[SourceTitle "playchess.com"]
[Source "ChessBase"]
[SourceQuality "1"]
[TimeControl "900+10"]

1. Nf3 {[%emt 0:12:07]} d5 {[%emt 0:12:07]} 2. d4 {[%emt 0:00:09]} Nf6 {[%emt 0:00:10]} 3. c4 {[%emt 0:00:09]} c6 {[%emt 0:00:10]} 4. e3 {[%emt 0:00:10]} e6 {[%emt 0:00:10]} 5. Nbd2 {[%emt 0:00:09]} Nbd7 {[%emt 0:00:09]} 6. Bd3 {[%emt 0:00:09]} Bd6 {[%emt 0:00:09]} 7. e4 {[%emt 0:00:09]} e5 {[%emt 0:00:09]} 8. cxd5 {[%emt 0:00:09]} cxd5 {[%emt 0:00:09]} 9. exd5 {[%emt 0:00:09]} O-O {[%emt 0:00:09]} 10. O-O {[%emt 0:00:10]} exd4 {[%emt 0:00:10]} 11. Nxd4 {[%emt 0:00:09]} Nb6 {[%emt 0:00:18]} 12. Nf5 {[%emt 0:00:09]} Nbxd5 {[%emt 0:00:28]} 13. Nxd6 {[%emt 0:00:10]} Qxd6 {[%emt 0:00:09]} 14. Nc4 {[%emt 0:00:46]} Qc7 {[%emt 0:00:09]} 15. h3 {[%emt 0:00:11]} Rd8 {[%emt 0:00:11]} 16. Qf3 {[%emt 0:00:12]} b6 {[%emt 0:00:18]} 17. Bg5 {[%emt 0:00:46]} Bb7 {[%emt 0:00:09]} 18. Be2 {[%emt 0:00:09]} h6 {[%emt 0:00:12]} 19. Bxf6 {[%emt 0:00:13]} Nxf6 {[%emt 0:00:13]} 20. Qa3 {[%emt 0:00:10]} Re8 {[%emt 0:00:37]} 21. Ne3 {[%emt 0:00:12]} Qf4 {[%emt 0:00:10]} 22. Rfe1 {[%emt 0:00:22]} Re5 {[%emt 0:00:15]} 23. Ng4 {[%emt 0:00:21]} Re6 {[%emt 0:00:50]} 24. Nxf6+ {[%emt 0:00:29]} Rxf6 {[%emt 0:00:10]} 25. Qe3 {[%emt 0:00:13]} Qxe3 {[%emt 0:00:16]} 26. fxe3 {[%emt 0:00:09]} Re8 {[%emt 0:00:12]} 27. Bf1 {[%emt 0:00:09]} a5 {[%emt 0:00:33]} 28. Rad1 {[%emt 0:00:15]} g5 {[%emt 0:00:11]} 29. a3 {[%emt 0:00:11]} Kg7 {[%emt 0:00:09]} 30. Rd4 {[%emt 0:00:12]} Re5 {[%emt 0:00:12]} 31. b4 {[%emt 0:00:11]} h5 {[%emt 0:00:17]} 32. Bd3 {[%emt 0:00:15]} h4 {[%emt 0:00:11]} 33. Bc4 {[%emt 0:00:19]} Be4 {[%emt 0:00:14]} 34. Bf1 {[%emt 0:00:13]} Rc6 {[%emt 0:00:13]} 35. bxa5 {[%emt 0:00:17]} bxa5 {[%emt 0:00:09]} 36. Bc4 {[%emt 0:00:11]} Bg6 {[%emt 0:00:21]} 37. Bd5 {[%emt 0:00:11]} Rc3 {[%emt 0:00:10]} 38. e4 {[%emt 0:00:10]} Rxa3 {[%emt 0:00:09]} 39. Rf1 {[%emt 0:00:11]} Rc3 {[%emt 0:00:18]} 40. Ra1 {[%emt 0:00:17]} Rc5 {[%emt 0:00:13]} 41. Rda4 {[%emt 0:00:09]} f5 {[%emt 0:00:11]} 42. Rxa5 {[%emt 0:00:14]} Rxa5 {[%emt 0:00:09]} 43. Rxa5 {[%emt 0:00:09]} fxe4 {[%emt 0:00:09]} 44. Ra7+ {[%emt 0:00:08]} Kf8 {[%emt 0:00:10]} 45. Bc4 {[%emt 0:00:11]} Bh5 {[%emt 0:00:15]} 46. Rh7 {[%emt 0:00:13]} Bg6 {[%emt 0:00:10]} 47. Rc7 {[%emt 0:00:11]} e3 {[%emt 0:00:10]} 48. Be2 {[%emt 0:00:09]} Be4 {[%emt 0:00:11]} 49. Rc3 {[%emt 0:00:11]} Bd5 {[%emt 0:00:09]} 50. Kf1 {[%emt 0:00:17]} Rf5+ {[%emt 0:00:10]} 51. Kg1 {[%emt 0:00:09]} Re5 {[%emt 0:00:12]} 52. Kf1 {[%emt 0:00:09]} Ke7 {[%emt 0:00:08]} 53. Bf3 {[%emt 0:00:14]} Bxf3 {[%emt 0:00:13]} 54. gxf3 {[%emt 0:00:09]} e2+ {[%emt 0:00:10]} 55. Ke1 {[%emt 0:00:09]} Kf6 {[%emt 0:00:09]} 56. Rc8 {[%emt 0:00:19]} Re3 {[%emt 0:00:10]} 57. Rf8+ {[%emt 0:00:09]} Kg7 58. Rf5 {[%emt 0:00:09]} Kg6 {[%emt 0:00:18]} 59. Rf8 {[%emt 0:00:09]} Re7 {[%emt 0:00:13]} 60. f4 {[%emt 0:00:12]} g4 {[%emt 0:00:10]} 61. Rg8+ {[%emt 0:00:10]} Rg7 {[%emt 0:00:10]} 62. Rh8 {[%emt 0:00:13]} Rh7 {[%emt 0:00:11]} 63. Rg8+ {[%emt 0:00:09]} Rg7 {[%emt 0:00:09]} 64. Rh8 {[%emt 0:00:09]} gxh3 {[%emt 0:00:09]} 65. Rxh4 {[%emt 0:00:10]} Rf7 {[%emt 0:00:12]} 66. Rxh3 {[%emt 0:00:10]} Rxf4 {[%emt 0:00:09]} 67. Kxe2 1/2-1/2